Workbook

Sheet Cover
B3: Excel + VBA
B4: Stochastik
B7: Kapitel | C7: 6
B8: Thema | C8: Beobachtungen und Messungen
B10: Inhalt | C10: Szenarien
B18: Version | C18: 2.0
B19: Autor | C19: Harald Nahrstedt
B20: Letzte Bearbeitung | C20: 2023-03-04
B23: Springer Vieweg Verlag

Sheet Kalkulation Stückzahlen
B1: Einzelkosten | C1: %-Anteil
A2: Entwicklung | B2: 9900 | C2: =Einzelkosten/Gesamtkosten -> 0.2071129707
A3: Material | B3: 10200 | C3: 0.2133891213
A4: Fertigung | B4: 7900 | C4: 0.1652719665
A5: Verwaltung | B5: 4600 | C5: 0.09623430962
A6: Marketing | B6: 6300 | C6: 0.1317991632
A7: Vertrieb | B7: 8900 | C7: 0.1861924686
A9: Gesamtkosten | B9: =SUM(Einzelkosten) -> 47800
A11: Stückzahl | B11: 1000
A12: Herstellpreis | B12: =Gesamtkosten/Stückzahl -> 47.8
A13: Gewinn | B13: =Herstellpreis*GewinnProzent -> 11.95 | C13: 0.25
A14: Nettopreis | B14: =Herstellpreis+Gewinn -> 59.75
A15: MWSteuer | B15: =Nettopreis*MWSP -> 11.3525
A16: Verkaufspreis | B16: =Nettopreis+MWSteuer -> 71.1025

Sheet Szenariobericht
B2: Szenariobericht
D3: Aktuelle Werte: | E3: WorstCase1 | F3: WorstCase2 | G3: BestCase1 | H3: BestCase2
B5: Veränderbare Zellen:
C6: $B$2 | D6: 12400 | E6: 12400 | F6: 15200 | G6: 12400 | H6: 9900
C7: $B$3 | D7: 10200 | E7: 13400 | F7: 10200 | G7: 6900 | H7: 10200
C8: $B$4 | D8: 11500 | E8: 12600 | F8: 13800 | G8: 10700 | H8: 7900
C9: $B$5 | D9: 5400 | E9: 5400 | F9: 6200 | G9: 5400 | H9: 4600
C10: $B$6 | D10: 9400 | E10: 9400 | F10: 11000 | G10: 9400 | H10: 6300
C11: $B$7 | D11: 10400 | E11: 12100 | F11: 13400 | G11: 9300 | H11: 8900
B12: Ergebniszellen:
C13: Verkaufspreis | D13: 917.371 | E13: 332.605 | F13: 377.468 | G13: 289.289 | H13: 235.144
B14: Hinweis: Die Aktuelle Wertespalte repräsentiert die Werte der veränderbaren
B15: Zellen zum Zeitpunkt, als der Szenariobericht erstellt wurde. Veränderbare Zellen
B16: für Szenarien sind in grau hervorgehoben.

Sheet Szenarien Einzelkosten
B1: Einzelkosten | C1: %-Anteil | E1: WorstCase1 | F1: WorstCase2 | G1: BestCase1 | H1: BestCase2
A2: Entwicklung | B2: 12400 | C2: =Einzelkosten/Gesamtkosten -> 0.2091062395 | E2: 12400 | F2: 15200 | G2: 12400 | H2: 9900
A3: Material | B3: 10200 | C3: 0.1720067454 | E3: 13400 | F3: 10200 | G3: 6900 | H3: 10200
A4: Fertigung | B4: 11500 | C4: 0.1939291737 | E4: 12600 | F4: 13800 | G4: 10700 | H4: 7900
A5: Verwaltung | B5: 5400 | C5: 0.0910623946 | E5: 5400 | F5: 6200 | G5: 5400 | H5: 4600
A6: Marketing | B6: 9400 | C6: 0.1585160202 | E6: 9400 | F6: 11000 | G6: 9400 | H6: 6300
A7: Vertrieb | B7: 10400 | C7: 0.1753794266 | E7: 12100 | F7: 13400 | G7: 9300 | H7: 8900
A9: Gesamtkosten | B9: =SUM(B2:B8) -> 59300
A11: Stückzahl | B11: 100
A12: Herstellpreis | B12: =Gesamtkosten/Stückzahl -> 593
A13: Gewinn | B13: =Herstellpreis*GewinnProzent -> 177.9 | C13: 0.3
A14: Nettopreis | B14: =Herstellpreis+Gewinn -> 770.9
A15: MWSteuer | B15: =Nettopreis*MWSP -> 146.471
A16: Verkaufspreis | B16: =Nettopreis+MWSteuer -> 917.371
